fUST/lending_fUST_20240522
["ID","MTS","AMOUNT","RATE_DAILY","PERIOD"]
[327722451,1716382032304,-1416.1184907,0.00026848,2]
[327722452,1716382032330,-1416.1184907,0.00026848,2]
[327722453,1716382032352,-1416.1184907,0.00026848,2]
[327722454,1716382032374,-1416.1184907,0.00026848,2]
[327722455,1716382032396,-1416.1184907,0.00026848,2]
[327722456,1716382032418,-1416.1184907,0.00026848,2]
[327722457,1716382032445,-1416.1184907,0.00026848,2]
[327722458,1716382032468,-1416.1184907,0.00026848,2]
[327722459,1716382032492,-1416.1184907,0.00026848,2]
[327722460,1716382032515,-1416.1184907,0.00026848,2]
[327722461,1716382032538,-1416.1184907,0.00026848,2]
[327722462,1716382032560,-1387.79612088,0.00026848,2]
[327722463,1716382032587,-1387.79612088,0.00026848,2]
[327722464,1716382032610,-1387.79612088,0.00026848,2]
[327722465,1716382032633,-1387.79612088,0.00026848,2]
[327722466,1716382032655,-1387.79612088,0.00026848,2]
[327722467,1716382032678,-1387.79612088,0.00026848,2]
[327722468,1716382032699,-1387.79612088,0.00026848,2]
[327722469,1716382032721,-1387.79612088,0.00026848,2]
[327722470,1716382032742,-1387.79612088,0.00026848,2]
[327722471,1716382032764,-1387.79612088,0.00026848,2]
[327722472,1716382032786,-1387.79612088,0.00026848,2]
[327722473,1716382032807,-1387.79612088,0.00026848,2]
[327722474,1716382032830,-1387.79612088,0.00026848,2]
[327722475,1716382032851,-1387.79612088,0.00026848,2]
[327722476,1716382032871,-1387.79612088,0.00026848,2]
[327722477,1716382032893,-1387.79612088,0.00026848,2]
[327722478,1716382032915,-1387.79612088,0.00026848,2]
[327722479,1716382032937,-1387.79612088,0.00026848,2]
[327722480,1716382032958,-1387.79612088,0.00026848,2]
[327722481,1716382032980,-1387.79612088,0.00026848,2]
[327722482,1716382033001,-1387.79612088,0.00026848,2]
[327722483,1716382033025,-1387.79612088,0.00026848,2]
[327722484,1716382033047,-1387.79612088,0.00026848,2]
[327722485,1716382033069,-1387.79612088,0.00026848,2]
[327722486,1716382033092,-1387.79612088,0.00026848,2]
[327722487,1716382033114,-1387.79612088,0.00026848,2]
[327722488,1716382033136,-1341.5362502,0.00026848,2]
[327722489,1716382033161,-1341.5362502,0.00026848,2]
[327722490,1716382033184,-1341.5362502,0.00026848,2]
[327722491,1716382033206,-1341.5362502,0.00026848,2]
[327722492,1716382033231,-1341.5362502,0.00026848,2]
[327722493,1716382033253,-1341.5362502,0.00026848,2]
[327722494,1716382033291,-204.5437107,0.00027332,2]
[327722495,1716382033426,-204.5437107,0.00027332,2]
[327722496,1716382033450,-204.5437107,0.00027332,2]
[327722497,1716382033470,-204.5437107,0.00027332,2]
[327722498,1716382033492,-204.5437107,0.00027332,2]
[327722499,1716382033512,-204.5437107,0.00027332,2]
[327722500,1716382033536,-204.5437107,0.00027332,2]
[327722501,1716382033556,-204.5437107,0.00027332,2]
[327722502,1716382033581,-203.3468667,0.00027332,2]
[327722503,1716382033600,-204.5437107,0.00027333,2]
[327722504,1716382033621,-204.5437107,0.00027333,2]
[327722505,1716382033641,-204.5437107,0.00027333,2]
[327722506,1716382033663,-209.04107445,0.00027719,3]
[327722507,1716382033684,-9480.73,0.0002799,3]
[327722508,1716382033704,-1015.74897281,0.00027999,2]
[327722509,1716382033725,-5612.53930698,0.00028,5]
[327722510,1716382033746,-152870.81271259,0.00028,4]
[327722511,1716382033875,-20635.64415,0.00028,4]
[327722513,1716382054110,-154.93802479,0.00019304,2]
[327722514,1716382054131,-6895.68318444,0.0002797,2]
[327722515,1716382054150,-5486.53,0.0002799,3]
[327722516,1716382054172,-7540.96178191,0.00028,5]
[327722517,1716382054192,-96766.54511886,0.00028,4]
[327722835,1716382238612,-746.57674291,0.0002797,2]
[327722837,1716382238623,-505.21498945,0.00028,4]
[327722839,1716382238633,-4182.94256593,0.00028,2]
[327722841,1716382238643,-1000.0,0.00028,14]
[327722843,1716382238652,-1916.71444459,0.00028,14]
[327722851,1716382238726,-71491.26116057,0.00028,14]
[327722854,1716382238735,-876.08144794,0.00028,2]
[327722856,1716382238747,-281.0,0.00028,2]
[327722858,1716382238756,-563.0,0.00028,2]
[327722860,1716382238766,-323.0,0.00028,2]
[327722862,1716382238775,-154.93802479,0.00028,2]
[327722864,1716382238785,-204.5437107,0.00028125,2]
[327722866,1716382238794,-204.5437107,0.00028125,2]
[327722868,1716382238803,-204.5437107,0.00028125,2]
[327722870,1716382238812,-204.5437107,0.00028125,2]
[327722872,1716382238822,-204.5437107,0.00028125,2]
[327722874,1716382238832,-204.5437107,0.00028125,2]
[327722876,1716382238841,-204.5437107,0.00028125,2]
[327722877,1716382238851,-204.5437107,0.00028125,2]
[327722880,1716382238860,-204.5437107,0.00028125,2]
[327722882,1716382238870,-204.5437107,0.00028125,2]
[327722884,1716382238879,-253.1225251,0.00028125,2]
[327722886,1716382238888,-1000.0,0.00029,25]
[327722888,1716382238898,-150.92453773,0.00029106,2]
[327722890,1716382238907,-250.36569715,0.00029106,2]
[327722892,1716382238917,-301.84907546,0.00029595,4]
[327722894,1716382238926,-173.0927842,0.00029799,2]
[327722896,1716382238935,-153.0,0.00029799,2]
[327722898,1716382238944,-153.0,0.00029799,2]
[327722900,1716382238953,-153.0,0.00029799,2]
[327722902,1716382238963,-153.0,0.00029799,2]
[327722904,1716382238972,-500.0,0.00029978,2]
[327722906,1716382238981,-500.0,0.00029978,2]
[327722908,1716382238993,-500.0,0.00029978,2]
[327722909,1716382239003,-500.0,0.00029978,2]
[327722910,1716382239012,-500.0,0.00029978,2]
[327722911,1716382239022,-500.0,0.00029978,2]
[327722912,1716382239033,-500.0,0.00029978,2]
[327722913,1716382239045,-500.0,0.00029978,2]
[327722914,1716382239055,-500.0,0.00029978,2]
[327722915,1716382239066,-500.0,0.00029978,2]
[327722916,1716382239076,-500.0,0.00029978,2]
[327722917,1716382239087,-500.0,0.00029978,2]
[327722918,1716382239098,-500.0,0.00029978,2]
[327722919,1716382239108,-500.0,0.00029978,2]
[327722921,1716382239118,-500.0,0.00029978,2]
[327722923,1716382239128,-500.0,0.00029978,2]
[327722925,1716382239137,-500.0,0.00029978,2]
[327722927,1716382239147,-500.0,0.00029978,2]
[327722929,1716382239157,-500.0,0.00029978,2]
[327722931,1716382239166,-500.0,0.00029978,2]
[327722933,1716382239176,-500.0,0.00029978,2]
[327722935,1716382239185,-500.0,0.00029978,2]
[327722937,1716382239194,-500.0,0.00029978,2]
[327722939,1716382239204,-500.0,0.00029978,2]
[327722941,1716382239213,-500.0,0.00029978,2]
[327722943,1716382239223,-500.0,0.00029978,2]
[327722945,1716382239232,-500.0,0.00029978,2]
[327722947,1716382239245,-500.0,0.00029978,2]
[327722948,1716382239255,-500.0,0.00029978,2]
[327722951,1716382239265,-500.0,0.00029978,2]
[327722953,1716382239275,-4572.11,0.00029979,3]
[327722954,1716382239284,-5655.72133643,0.00029989,5]
[327722956,1716382239294,-7723.22896531,0.0003,10]
[327722958,1716382239304,-40900.86615905,0.0003,4]
[327722961,1716382239314,-1000.0,0.0003,44]
[327722963,1716382239324,-1439.0,0.0003,2]
[327722965,1716382239334,-30701.97029533,0.0003,2]
[327722967,1716382239344,-1040.22350394,0.0003,30]
[327723077,1716382240872,-503.01188397,0.00029968,3]
[327723078,1716382240883,-2805.11229578,0.00029968,3]
[327723272,1716382243905,-501.96582025,0.00029968,3]
[327723275,1716382244005,-4.33375662,0.0003,30]
[327723321,1716382244809,-13947.95636968,0.0003,30]
[327723323,1716382244822,-358.11152699,0.0003,30]
[327723325,1716382244832,-173.0,0.0003,2]
[327723327,1716382244843,-603.69815092,0.00030092,7]
[327723330,1716382244852,-151.0,0.00030136,2]
[327723332,1716382244863,-1740.44,0.00030136,6]
[327723334,1716382244873,-1740.44,0.00030136,6]
[327723336,1716382244882,-1740.44,0.00030136,6]
[327723338,1716382244891,-1740.44,0.00030136,6]
[327723340,1716382244900,-1740.44,0.00030136,6]
[327723342,1716382244909,-1740.44,0.00030136,6]
[327723344,1716382244918,-1183.75032227,0.00030136,6]
[327723346,1716382244930,-556.68967773,0.00030136,6]
[327723348,1716382244939,-1740.44,0.00030136,6]
[327723350,1716382244949,-1740.44,0.00030136,6]
[327723352,1716382244959,-1740.44,0.00030136,6]
[327723354,1716382244969,-1740.44,0.00030136,6]
[327723356,1716382244979,-1740.44,0.00030136,6]
[327723358,1716382244988,-1740.44,0.00030136,6]
[327723360,1716382245004,-1740.44,0.00030136,6]
[327723362,1716382245014,-1740.44,0.00030136,6]
[327723364,1716382245023,-1740.44,0.00030136,6]
[327723366,1716382245032,-1740.44,0.00030136,6]
[327723368,1716382245043,-291.5019197,0.00030291,2]
[327723370,1716382245052,-291.5019197,0.00030292,2]
[327723372,1716382245062,-291.5019197,0.00030292,2]
[327723374,1716382245072,-291.5019197,0.00030292,2]
[327723376,1716382245082,-291.5019197,0.00030292,2]
[327723378,1716382245092,-291.5019197,0.00030292,2]
[327723380,1716382245101,-191.753776,0.0003031,2]
[327723382,1716382245111,-153.0,0.00030346,2]
[327723384,1716382245119,-153.0,0.00030346,2]
[327723386,1716382245128,-153.0,0.00030346,2]
[327723388,1716382245138,-153.0,0.00030347,2]
[327723390,1716382245147,-153.0,0.00030347,2]
[327723392,1716382245157,-153.0,0.00030347,2]
[327723394,1716382245167,-153.0,0.00030347,2]
[327723396,1716382245177,-166.91046477,0.00030598,4]
[327723398,1716382245186,-291.5019197,0.0003062,2]
[327723400,1716382245195,-291.5019197,0.0003062,2]
[327723402,1716382245204,-291.5019197,0.0003062,2]
[327723404,1716382245213,-291.5019197,0.0003062,2]
[327723407,1716382245223,-291.5019197,0.0003062,2]
[327723409,1716382245232,-291.5019197,0.0003062,2]
[327723410,1716382245241,-291.5019197,0.0003062,2]
[327723413,1716382245255,-291.5019197,0.0003062,2]
[327723415,1716382245264,-291.5019197,0.00030621,2]
[327723416,1716382245273,-291.5019197,0.00030621,2]
[327723418,1716382245284,-291.5019197,0.00030621,2]
[327723420,1716382245294,-291.5019197,0.00030621,2]
[327723423,1716382245304,-151.0,0.00030664,2]
[327723425,1716382245316,-271.23359058,0.00030664,30]
[327723494,1716382266556,913.56340849,9.999e-05,2]
[327723496,1716382316894,189.99472114,0.000156,2]
[327723498,1716382348020,154.92253873,0.000156,2]
[327723499,1716382364024,154.92253873,0.000156,2]
[327723500,1716382384032,225.42395161,0.000156,2]
[327723595,1716382904845,154.92253873,0.00015,2]
[327723625,1716383192174,-450.9651407,0.000189,2]
[327723626,1716383192194,-7523.42363792,0.0002,2]
[327723678,1716383433023,-1554.52327033,0.0002,2]
[327723680,1716383433034,-653.96033984,0.0002,2]
[327723682,1716383433043,-263.827539,0.00020189,2]
[327723684,1716383433053,-935.463896,0.00020367,2]
[327723686,1716383433062,-213.2538991,0.00020823,2]
[327723688,1716383433072,-1539.04409321,0.00020913,2]
[327723690,1716383433081,-167.0034982,0.00022105,2]
[327723692,1716383433091,-450.9651407,0.000239,2]
[327723694,1716383433100,-172.578398,0.00024384,2]
[327723696,1716383433110,-621.39957821,0.0002699,2]
[327723698,1716383433119,-196.678636,0.00027065,2]
[327723700,1716383433129,-189.67594195,0.0002787,2]
[327723702,1716383433140,-411.8372409,0.00028,2]
[327723785,1716383438518,-44.60119348,0.00028,2]
[327723787,1716383438529,-289.79530705,0.000289,2]
[327723793,1716383438578,-161.16983365,0.000289,2]
[327723795,1716383438588,-291.5019197,0.00029798,2]
[327723797,1716383438597,-291.5019197,0.00029798,2]
[327723799,1716383438607,-291.5019197,0.00029798,2]
[327723801,1716383438616,-291.5019197,0.00029798,2]
[327723803,1716383438626,-291.5019197,0.00029798,2]
[327723805,1716383438636,-291.5019197,0.00029798,2]
[327723807,1716383438645,-291.5019197,0.00029798,2]
[327723809,1716383438654,-583.0038394,0.00029798,2]
[327723810,1716383438663,-30701.97029533,0.0003,2]
[327723812,1716383438673,-155.58206691,0.00030059,2]
[327723814,1716383438682,-722.1554558,0.0003021,2]
[327723816,1716383438691,-417.22450303,0.00030213,2]
[327723818,1716383438701,-263.827539,0.00030283,2]
[327723820,1716383438710,-172.578398,0.0003031,2]
[327723822,1716383438720,-208.90811837,0.00030357,3]
[327723824,1716383438729,-501.06560013,0.00030371,2]
[327723826,1716383438738,-150.397,0.00030371,7]
[327723828,1716383438748,-1872.29214755,0.00030373,2]
[327723830,1716383438757,-722.15545576,0.00030423,2]
[327723832,1716383438768,-281.0,0.000306,3]
[327723834,1716383438777,-291.5019197,0.0003062,2]
[327723836,1716383438787,-291.5019197,0.0003062,2]
[327723838,1716383438796,-291.5019197,0.0003062,2]
[327723840,1716383438806,-291.5019197,0.0003062,2]
[327723842,1716383438815,-291.5019197,0.0003062,2]
[327723844,1716383438825,-291.5019197,0.0003062,2]
[327723846,1716383438834,-291.5019197,0.0003062,2]
[327723848,1716383438843,-291.5019197,0.0003062,2]
[327723850,1716383438853,-291.5019197,0.0003062,2]
[327723852,1716383438863,-291.5019197,0.0003062,2]
[327723854,1716383438876,-291.5019197,0.0003062,2]
[327723856,1716383438889,-291.5019197,0.0003062,2]
[327723858,1716383438899,-667.3984173,0.0003062,2]
[327723860,1716383438909,-9379.9936,0.00030629,30]
[327723862,1716383438918,-722.15545576,0.00030635,2]
[327723864,1716383438928,-1018.6175268,0.000308,120]
[327723866,1716383438937,-722.15545576,0.00030848,2]
[327723868,1716383438948,-1000.0,0.00031,45]
[327723870,1716383438959,-700.00004316,0.00031,2]
[327723872,1716383438968,-2713.98600183,0.00031,2]
[327723874,1716383438977,-3000.0,0.00031,6]
[327723876,1716383438989,-155.46540379,0.00031004,4]
[327723878,1716383438998,-3000.0,0.0003101,6]
[327723880,1716383439008,-1837.43,0.0003101,3]
[327723882,1716383439018,-181.49361007,0.00031011,4]
[327723884,1716383439028,-1364.50481129,0.00031012,4]
[327723886,1716383439038,-500.0,0.00031019,2]
[327723888,1716383439048,-500.0,0.00031019,2]
[327723890,1716383439058,-320.16025363,0.00031019,2]
[327723892,1716383439067,-500.0,0.00031019,2]
[327723894,1716383439078,-500.0,0.00031019,2]
[327723896,1716383439088,-500.0,0.00031019,2]
[327723898,1716383439098,-500.0,0.00031019,2]
[327723900,1716383439107,-500.0,0.00031019,2]
[327723902,1716383439117,-500.0,0.00031019,2]
[327723904,1716383439127,-500.0,0.00031019,2]
[327723906,1716383439140,-500.0,0.00031019,2]
[327723908,1716383439150,-500.0,0.00031019,2]
[327723910,1716383439160,-500.0,0.00031019,2]
[327723912,1716383439170,-500.0,0.00031019,2]
[327723914,1716383439180,-500.0,0.00031019,2]
[327723916,1716383439190,-500.0,0.00031019,2]
[327723918,1716383439199,-500.0,0.00031019,2]
[327723920,1716383439209,-500.0,0.00031019,2]
[327723922,1716383439219,-500.0,0.00031019,2]
[327723924,1716383439228,-500.0,0.00031019,2]
[327723926,1716383439238,-500.0,0.00031019,2]
[327723928,1716383439247,-500.0,0.00031019,2]
[327723930,1716383439256,-500.0,0.00031019,2]
[327723932,1716383439266,-500.0,0.00031019,2]
[327723934,1716383439275,-500.0,0.00031019,2]
[327723936,1716383439285,-500.0,0.00031019,2]
[327723938,1716383439295,-500.0,0.00031019,2]
[327723940,1716383439304,-500.0,0.00031019,2]
[327723942,1716383439314,-500.0,0.00031019,2]
[327723944,1716383439324,-500.0,0.00031019,2]
[327723946,1716383439334,-500.0,0.00031019,2]
[327723948,1716383439343,-353.05821267,0.00031019,2]
[327724093,1716383440714,-19.8702016,0.00031019,2]
[327724096,1716383440725,-358.92339095,0.00031019,2]
[327724098,1716383440738,-141.07660905,0.00031019,2]
[327724100,1716383440748,-120.46939095,0.00031019,2]
[327724113,1716383440864,-379.53060905,0.00031019,2]
[327724115,1716383440876,-500.0,0.00031019,2]
[327724116,1716383440887,-500.0,0.00031019,2]
[327724119,1716383440897,-500.0,0.00031019,2]
[327724121,1716383440907,-500.0,0.00031019,2]
[327724122,1716383440917,-500.0,0.00031019,2]
[327724125,1716383440927,-3000.0,0.0003102,6]
[327724126,1716383440937,-4241.79100233,0.0003103,5]
[327724128,1716383440948,-3000.0,0.0003103,6]
[327724131,1716383440959,-3000.0,0.0003104,6]
[327724133,1716383440968,-2221.04086212,0.0003105,6]
[327724135,1716383440980,-331.21317262,0.0003105,6]
[327724397,1716383443831,-656.00053528,0.0002,2]
[327724412,1716383443885,-1816.93331848,0.0002,2]
[327724416,1716383443896,-154.93802479,0.0002,2]
[327724419,1716383443908,-447.74596526,0.0003105,6]
[327724423,1716383443918,-3000.0,0.0003106,6]
[327724427,1716383443928,-722.15545576,0.0003106,2]
[327724432,1716383443941,-3000.0,0.0003107,6]
[327724435,1716383443951,-507.62,0.00031078,6]
[327724438,1716383443961,-507.62,0.00031078,6]
[327724439,1716383443970,-507.62,0.00031078,6]
[327724442,1716383443979,-3000.0,0.0003108,6]
[327724444,1716383443989,-1073.52938555,0.0003108,2]
[327724447,1716383443999,-1132.12401636,0.00031089,4]
[327724790,1716383447206,-581.7589866,0.00029798,2]
[327724792,1716383447216,-707.16484359,0.00031089,4]
[327724794,1716383447226,-3000.0,0.0003109,6]
[327724796,1716383447236,-3000.0,0.000311,6]
[327724798,1716383447246,-3000.0,0.0003111,6]
[327724800,1716383447257,-3000.0,0.0003112,6]
[327724802,1716383447267,-3000.0,0.0003113,6]
[327724804,1716383447277,-3000.0,0.0003114,6]
[327724806,1716383447287,-3000.0,0.0003115,7]
[327724808,1716383447296,-3000.0,0.0003116,7]
[327724810,1716383447306,-190.96664974,0.00031169,2]
[327724812,1716383447315,-3000.0,0.0003117,7]
[327724814,1716383447325,-3000.0,0.0003118,7]
[327724816,1716383447334,-3000.0,0.0003119,7]
[327724818,1716383447344,-507.62,0.00031199,6]
[327724820,1716383447353,-3000.0,0.000312,7]
[327724822,1716383447363,-920.42024432,0.00031207,4]
[327724824,1716383447372,-444.1506385,0.00031208,4]
[327724826,1716383447381,-3000.0,0.0003121,7]
[327724828,1716383447394,-2868.84,0.00031218,3]
[327724830,1716383447403,-3000.0,0.0003122,7]
[327724832,1716383447413,-507.62,0.00031227,6]
[327724834,1716383447422,-507.62,0.00031227,6]
[327724836,1716383447433,-50778.25595288,0.00031228,4]
[327725191,1716384368303,283.72768462,0.000137,2]
[327725193,1716384569171,-170.53789123,0.00018899,2]
[327725194,1716384569191,-920.93404353,0.00018998,2]
[327725195,1716384569211,-262.5749051,0.00018999,2]
[327725196,1716384569236,-256.59929164,0.000199,2]
[327725197,1716384569256,-274.17394813,0.00019998,2]
[327725198,1716384569277,-357.71384651,0.00019998,2]
[327725199,1716384569299,-2004.92033865,0.00019998,2]
[327725200,1716384569318,-8092.13332002,0.00019998,2]
[327725201,1716384569339,-2063.6315149,0.00019998,2]
[327725202,1716384569361,-720.11009845,0.00019998,2]
[327725203,1716384569381,-983.35197432,0.00019998,2]
[327725204,1716384569402,-214.74140224,0.00019998,2]
[327725205,1716384569422,-780.63294479,0.00019998,2]
[327725206,1716384569442,-284.2518767,0.00019998,2]
[327725207,1716384569464,-267.66151171,0.00019998,2]
[327725208,1716384569484,-186.39835571,0.00019999,2]
[327725209,1716384569506,-835.01810793,0.00019999,2]
[327725210,1716384569527,-20310.43682942,0.0002,2]
[327725261,1716384632893,-155.58206686,0.000199,2]
[327725263,1716384632904,-34594.7918925,0.0002,2]
[327725483,1716384639069,-10380.14810115,0.0002,2]
[327725485,1716384639082,-413.4705,0.0002,2]
[327725487,1716384639093,-23505.08558045,0.0002,2]
[327725489,1716384639104,-778.29964497,0.0002,2]
[327725491,1716384639114,-166.666666,0.00021918,2]
[327725493,1716384639124,-151.0,0.00022397,3]
[327725495,1716384639134,-151.0,0.00022397,3]
[327725497,1716384639144,-155.58206686,0.00023941,2]
[327725499,1716384639154,-207.521812,0.00024384,2]
[327725501,1716384639164,-163.495324,0.00024384,2]
[327725503,1716384639174,-226.34092529,0.00024999,2]
[327725505,1716384639184,-500.0,0.00024999,2]
[327725507,1716384639194,-500.0,0.00024999,2]
[327725509,1716384639204,-500.0,0.00024999,2]
[327725511,1716384639214,-550.0,0.00024999,2]
[327725513,1716384639224,-500.0,0.00024999,2]
[327725515,1716384639234,-500.0,0.00024999,2]
[327725517,1716384639244,-269.49528319,0.00024999,2]
[327725519,1716384639259,-500.0,0.00024999,2]
[327725521,1716384639269,-500.0,0.00024999,2]
[327725523,1716384639279,-500.0,0.00024999,2]
[327725525,1716384639290,-500.0,0.00024999,2]
[327725527,1716384639300,-500.0,0.00024999,2]
[327725529,1716384639310,-500.0,0.00024999,2]
[327725531,1716384639320,-511.72485448,0.00024999,2]
[327725533,1716384639330,-500.0,0.00024999,2]
[327725535,1716384639341,-500.0,0.00024999,2]
[327725537,1716384639351,-500.0,0.00024999,2]
[327725539,1716384639365,-500.0,0.00024999,2]
[327725541,1716384639375,-500.0,0.00024999,2]
[327725543,1716384639384,-500.0,0.00024999,2]
[327725545,1716384639396,-500.0,0.00024999,2]
[327725548,1716384639406,-500.0,0.00024999,2]
[327725550,1716384639416,-500.0,0.00024999,2]
[327725552,1716384639426,-500.0,0.00024999,2]
[327725554,1716384639436,-500.0,0.00024999,2]
[327725556,1716384639446,-500.0,0.00024999,2]
[327725558,1716384639456,-473.5813129,0.00024999,2]
[327725559,1716384639465,-500.0,0.00024999,2]
[327725561,1716384639474,-8339.31694852,0.00025,5]
[327725563,1716384639484,-28960.48230622,0.00025,7]
[327725565,1716384639493,-256.59929162,0.00025405,2]
[327725568,1716384639503,-150.0,0.00025479,2]
[327725570,1716384639513,-4384.56471128,0.00026,2]
[327725572,1716384639523,-155.58206686,0.00027982,2]
[327725573,1716384639533,-1364.50481129,0.0003,4]
[327725575,1716384639542,-30701.97029533,0.0003,2]
[327725577,1716384639552,-150.90945433,0.0003058,2]
[327725579,1716384639561,-163.495324,0.00030639,2]
[327725581,1716384639571,-167.1264947,0.00030857,3]
[327725583,1716384639582,-256.59929162,0.0003091,2]
[327725586,1716384639591,-412.66303383,0.00030933,2]
[327725588,1716384639601,-3000.0,0.00031,6]
[327725589,1716384639613,-3000.0,0.0003101,6]
[327725592,1716384639622,-3000.0,0.0003102,6]
[327725594,1716384639633,-3000.0,0.0003103,6]
[327725596,1716384639643,-3000.0,0.0003104,6]
[327725597,1716384639652,-3000.0,0.0003105,6]
[327725600,1716384639662,-500.0,0.00031059,6]
[327725602,1716384639672,-500.0,0.00031059,6]
[327725604,1716384639681,-500.0,0.00031059,6]
[327725606,1716384639692,-3000.0,0.0003106,6]
[327725608,1716384639701,-3000.0,0.0003107,6]
[327725610,1716384639711,-3000.0,0.0003108,6]
[327725612,1716384639721,-3000.0,0.0003109,6]
[327725614,1716384639732,-301.81890865,0.00031094,4]
[327725616,1716384639742,-3000.0,0.000311,6]
[327725618,1716384639752,-3000.0,0.0003111,6]
[327725620,1716384639762,-3000.0,0.0003112,6]
[327725622,1716384639772,-3000.0,0.0003113,6]
[327725624,1716384639781,-3000.0,0.0003114,6]
[327725626,1716384639791,-3000.0,0.0003115,7]
[327725628,1716384639801,-3000.0,0.0003116,7]
[327725630,1716384639812,-3000.0,0.0003117,7]
[327725632,1716384639822,-500.0,0.00031179,6]
[327725634,1716384639833,-3000.0,0.0003118,7]
[327725636,1716384639843,-3000.0,0.0003119,7]
[327725638,1716384639854,-282.0,0.000312,4]
[327725640,1716384639864,-151.0,0.000312,4]
[327725642,1716384639874,-3000.0,0.000312,7]
[327725644,1716384639884,-3000.0,0.0003121,7]
[327725646,1716384639895,-3000.0,0.0003122,7]
[327725648,1716384639906,-500.0,0.00031227,6]
[327725650,1716384639916,-500.0,0.00031227,6]
[327725652,1716384639926,-6824.56596184,0.00031228,4]
[327725940,1716384644204,-2390.7,0.0002999,3]
[327725942,1716384644214,-8363.83085448,0.00031228,4]
[327725944,1716384644224,-613.25701356,0.00031228,4]
[327725945,1716384644234,-154.92253873,0.00031228,4]
[327725946,1716384644245,-2492.8688647,0.0003123,7]
[327725948,1716384644261,-1276.5,0.0003123,7]
[327725950,1716384644274,-1332.0546993,0.0003123,7]
[327725951,1716384644284,-500.0,0.00031349,6]
[327725952,1716384644295,-280.31460037,0.00031511,7]
[327725953,1716384644306,-155.68278511,0.00031541,7]
[327725954,1716384644317,-620.06997892,0.00031579,2]
[327725955,1716384644328,-603.63781731,0.00031617,7]
[327725956,1716384644339,-280.31460037,0.00031755,7]
[327725957,1716384644349,-280.31460037,0.00031903,7]
[327725958,1716384644362,-500.0,0.00031999,6]
[327725959,1716384644372,-1859.95832121,0.00032,5]
[327726034,1716384646733,-2349.44615902,0.00032,5]
[327726036,1716384646743,-5009.87298,0.00032,2]
[327726040,1716384646753,-783.97235853,0.00032,4]
[327726042,1716384646763,-3549.51105395,0.00032,120]
[327726044,1716384646773,-1000.0,0.00032,48]
[327726045,1716384646782,-1868.48,0.00032,4]
[327726046,1716384646792,-155.58206686,0.00032023,2]
[327726047,1716384646801,-151.0,0.000321,2]
[327726048,1716384646811,-280.31460037,0.00032259,7]
[327726049,1716384646821,-280.31460037,0.00032278,7]
[327726050,1716384646831,-259.0,0.00032335,9]
[327726051,1716384646841,-1207.27563462,0.00032417,30]
[327726052,1716384646851,-154.82093995,0.00032438,7]
[327726053,1716384646862,-280.31460037,0.0003258,7]
[327726054,1716384646871,-21818.5903852,0.000326,2]
[327726055,1716384646880,-348.0,0.00032602,10]
[327726056,1716384646889,-500.0,0.00032628,6]
[327726057,1716384646898,-11548.4281,0.00032639,30]
[327726058,1716384646908,-302.0,0.00032669,10]
[327726059,1716384646917,-323.15342602,0.000327,30]
[327726060,1716384646927,-280.31460037,0.00032731,7]
[327726061,1716384646936,-9527.49175792,0.00032777,2]
[327726062,1716384678196,1898.47491461,9.999e-05,2]
[327726063,1716384752631,522.84603088,9.999e-05,2]
[327726078,1716385074123,1467.8,0.00018,2]
[327726197,1716385756147,-28501.91320688,0.00021,2]
[327726198,1716385756172,-380.618527,0.00024224,2]
[327726199,1716385756194,-155.58206686,0.00024284,2]
[327726200,1716385756218,-1580.4270453,0.00024322,2]
[327726201,1716385756241,-165.94124,0.00024384,2]
[327726202,1716385756263,-595.9207791,0.00024522,2]
[327726203,1716385756301,-456.43843438,0.00025,2]